bitfinex/quotes_BTCUSD_20241203
["timestamp","ask_amount","ask_price","bid_price","bid_amount"]
[1733266328438,0.00162016,96004.0,96003.0,1.42592131]
[1733266329287,0.00162016,96004.0,96003.0,1.42192131]
[1733266329658,0.00162016,96004.0,96003.0,1.43092131]
[1733266332005,0.00162016,96004.0,96003.0,1.42192131]
[1733266332459,0.00162016,96004.0,96003.0,1.41292131]
[1733266332696,0.00162016,96004.0,96003.0,1.43092131]
[1733266334317,0.00162016,96004.0,96003.0,0.73092131]
[1733266335964,0.00162016,96004.0,96003.0,1.02878569]
[1733266338096,0.00162016,96004.0,96003.0,1.72878569]
[1733266344251,0.28477,96029.0,96019.0,0.408292]
[1733266344496,0.0765,96029.0,96019.0,0.57466359]
[1733266345839,0.0765,96029.0,96019.0,0.58366359]
[1733266346266,0.0765,96029.0,96019.0,0.58966359]
[1733266346481,0.2099842,96034.0,96019.0,0.58966359]
[1733266346912,0.2099842,96034.0,96019.0,1.28966359]
[1733266349521,0.2099842,96034.0,96019.0,1.43966359]
[1733266349522,0.0017252,96034.0,96019.0,1.43966359]
[1733266351753,0.0017252,96034.0,96019.0,1.46636701]
[1733266352460,0.0017252,96034.0,96019.0,1.88035514]
[1733266352699,0.0017252,96034.0,96019.0,1.46636701]
[1733266353633,0.0017268,96033.0,96019.0,1.46636701]
[1733266354589,0.0017268,96033.0,96019.0,1.45736701]
[1733266354819,0.0017268,96033.0,96019.0,1.46036701]
[1733266355064,0.0017268,96033.0,96019.0,0.76636701]
[1733266355305,0.0017268,96033.0,96019.0,0.75736701]
[1733266355536,0.0017268,96033.0,96019.0,0.76036701]
[1733266355776,0.0017268,96033.0,96019.0,0.76936701]
[1733266356575,0.0017268,96033.0,96019.0,0.76036701]
[1733266357768,0.0017268,96033.0,96019.0,0.75136701]
[1733266358013,0.0017268,96033.0,96019.0,1.46936701]
[1733266366106,0.0017268,96033.0,96019.0,0.76936701]
[1733266368365,0.0017268,96033.0,96019.0,0.76036701]
[1733266368588,0.0017268,96033.0,96019.0,0.76936701]
[1733266368828,0.0017268,96033.0,96019.0,0.76036701]
[1733266369296,0.0017268,96033.0,96019.0,1.46036701]
[1733266369738,0.0017268,96033.0,96019.0,1.46936701]
[1733266372880,0.0017268,96033.0,96019.0,1.57896701]
[1733266374188,0.0017252,96034.0,96019.0,1.57896701]
[1733266374406,0.0496254,96048.0,96019.0,1.57896701]
[1733266374407,0.0017254,96048.0,96041.0,0.2]
[1733266374623,0.0017254,96048.0,96044.0,0.28023841]
[1733266374624,0.0023144,96048.0,96044.0,0.28023841]
[1733266374855,0.0023144,96048.0,96047.0,0.28023841]
[1733266375099,0.0023144,96048.0,96047.0,0.4434461]
[1733266375767,0.0023144,96048.0,96047.0,0.16320769]
[1733266375978,0.0023144,96048.0,96047.0,0.16505032]
[1733266376206,0.0023144,96048.0,96047.0,0.16905032]
[1733266376449,0.0023144,96048.0,96047.0,0.36905032]
[1733266376661,0.0023144,96048.0,96047.0,0.36720769]
[1733266377091,0.0023144,96048.0,96047.0,0.37620769]
[1733266379527,0.0023144,96048.0,96047.0,0.65612183]
[1733266379964,0.0023144,96048.0,96047.0,0.68379375]
[1733266380449,0.0023144,96048.0,96047.0,1.38379375]
[1733266381592,0.0023144,96048.0,96047.0,1.38378726]
[1733266382967,0.0023144,96048.0,96047.0,0.68378726]
[1733266384558,0.0023144,96048.0,96047.0,0.40387961]
[1733266385950,0.0023144,96048.0,96047.0,1.10387961]
[1733266390772,0.0023144,96048.0,96047.0,1.38368883]
[1733266390976,0.0023144,96048.0,96047.0,1.10387961]
[1733266391203,0.0023144,96048.0,96047.0,1.38368883]
[1733266391425,0.0023144,96048.0,96047.0,1.38367579]
[1733266391657,0.0023144,96048.0,96047.0,1.10387961]
[1733266392141,0.0023144,96048.0,96047.0,1.3836235]
[1733266393052,0.0023144,96048.0,96047.0,1.10387961]
[1733266394275,0.01480142,96055.0,96048.0,0.2]
[1733266394492,0.208216,96054.0,96049.0,0.10471259]
[1733266394727,0.208216,96054.0,96049.0,0.13833033]
[1733266394934,0.208216,96054.0,96052.0,0.23314009]
[1733266395160,0.208216,96054.0,96053.0,0.10471259]
[1733266395371,0.208216,96054.0,96053.0,0.33785268]
[1733266395574,0.208216,96054.0,96053.0,0.10471259]
[1733266396252,0.014978,96055.0,96053.0,0.10471259]
[1733266396488,0.014978,96055.0,96054.0,0.2722314]
[1733266396696,0.014978,96055.0,96054.0,0.14380055]
[1733266396900,0.21994862,96056.0,96055.0,0.00012741]
[1733266397139,0.21994862,96056.0,96055.0,0.29136227]
[1733266397329,0.208213,96056.0,96055.0,0.10484]
[1733266397582,0.21994862,96056.0,96055.0,0.10484]
[1733266398023,0.2116252,96056.0,96055.0,0.10484]
[1733266398281,0.2116252,96056.0,96055.0,0.10684]
[1733266398709,0.2116252,96056.0,96055.0,0.3660305]
[1733266398920,0.2116252,96056.0,96055.0,0.3750305]
[1733266400009,0.18489938,96056.0,96055.0,0.37505971]
[1733266400221,0.17618144,96056.0,96055.0,0.18850823]
[1733266400434,0.01173562,96056.0,96055.0,0.30239249]
[1733266400653,0.00484675,96056.0,96055.0,0.11584]
[1733266400900,0.00277493,96056.0,96055.0,0.30239678]
[1733266401115,0.00277493,96056.0,96055.0,0.11584]
[1733266401549,0.00277493,96056.0,96055.0,0.81584]
[1733266401780,0.21098793,96056.0,96055.0,0.91867146]
[1733266402003,0.21098793,96056.0,96055.0,0.40523568]
[1733266402235,0.21085532,96056.0,96055.0,0.40510827]
[1733266403382,0.21085532,96056.0,96055.0,0.30227681]
[1733266403598,0.21085532,96056.0,96055.0,0.30229775]
[1733266403808,0.21085532,96056.0,96055.0,0.11571259]
[1733266404237,0.21056938,96056.0,96055.0,0.30229836]
[1733266404458,0.21056938,96056.0,96055.0,0.11571259]
[1733266404888,0.21056938,96056.0,96055.0,0.30233535]
[1733266405099,0.21056938,96056.0,96055.0,0.88928272]
[1733266405489,0.21229538,96056.0,96055.0,0.88928272]
[1733266406548,0.21229538,96056.0,96055.0,0.81571259]
[1733266407201,0.21229538,96056.0,96055.0,1.00237477]
[1733266407407,0.21229538,96056.0,96055.0,1.00238879]
[1733266407618,0.21229538,96056.0,96055.0,0.11571259]
[1733266408034,0.21229538,96056.0,96055.0,0.30239004]
[1733266408241,0.21229538,96056.0,96055.0,0.11571259]
[1733266409174,0.21229538,96056.0,96055.0,0.30241711]
[1733266410562,0.21229538,96056.0,96055.0,0.81571259]
[1733266411629,0.21229538,96056.0,96055.0,1.04890194]
[1733266412052,0.21229538,96056.0,96055.0,0.81571259]
[1733266412519,0.21229538,96056.0,96055.0,0.34890194]
[1733266412731,0.21229538,96056.0,96055.0,0.11571259]
[1733266412944,0.21229538,96056.0,96055.0,0.34890194]
[1733266413556,0.21229538,96056.0,96055.0,0.11571259]
[1733266414438,0.23063159,96056.0,96055.0,0.11571259]
[1733266417497,0.19627575,96056.0,96055.0,0.11571259]
[1733266418236,0.19361335,96056.0,96055.0,0.11571259]
[1733266419986,0.19361335,96056.0,96055.0,0.39637967]
[1733266420423,0.19361335,96056.0,96055.0,0.11571259]
[1733266421312,0.19361335,96056.0,96055.0,0.39653284]
[1733266421554,0.19361335,96056.0,96055.0,0.11571259]
[1733266423158,0.19361335,96056.0,96055.0,0.39653284]
[1733266425172,0.19361335,96056.0,96055.0,0.11571259]
[1733266429543,0.19361335,96056.0,96055.0,0.11657549]
[1733266433414,0.19361335,96056.0,96055.0,0.0118629]
[1733266433647,0.31681335,96056.0,96055.0,0.0118629]
[1733266434565,0.31681335,96056.0,96055.0,0.0028629]
[1733266435460,0.31681335,96056.0,96055.0,0.0118629]
[1733266435721,0.31681335,96056.0,96055.0,0.0098629]
[1733266435940,0.31681335,96056.0,96055.0,0.0118629]
[1733266436396,0.31681335,96056.0,96055.0,0.0098629]
[1733266436625,0.31681335,96056.0,96055.0,0.0018629]
[1733266436844,0.31681335,96056.0,96055.0,0.0078629]
[1733266441128,0.31529053,96056.0,96055.0,0.0078629]
[1733266442298,0.3093653,96056.0,96055.0,0.0078629]
[1733266447539,0.30865183,96056.0,96055.0,0.0078629]
[1733266449560,0.50865183,96056.0,96055.0,0.0078629]
[1733266450002,0.41085832,96054.0,96053.0,3.8e-07]
[1733266450232,0.65202774,96054.0,96053.0,3.8e-07]
[1733266450444,0.67036395,96054.0,96053.0,3.8e-07]
[1733266450929,0.70281112,96054.0,96053.0,3.8e-07]
[1733266451148,0.67036395,96054.0,96053.0,3.8e-07]
[1733266451811,0.6985862,96054.0,96053.0,3.8e-07]
[1733266452462,0.6985862,96054.0,96039.0,0.000863]
[1733266452463,0.20938976,96040.0,96039.0,0.000863]
[1733266452687,0.3099828,96040.0,96039.0,0.000863]
[1733266453121,0.41469539,96040.0,96039.0,0.000863]
[1733266453522,0.41469539,96040.0,96039.0,0.002863]
[1733266454062,0.41469539,96040.0,96039.0,0.011863]
[1733266454298,0.41569539,96040.0,96039.0,0.011863]
[1733266454534,0.41469539,96040.0,96039.0,0.002863]
[1733266454754,0.41569539,96040.0,96039.0,0.009863]
[1733266454980,0.41569539,96040.0,96039.0,0.007863]
[1733266455195,0.41569539,96040.0,96039.0,0.008863]
[1733266455627,0.41569539,96040.0,96039.0,0.007863]
[1733266456073,0.41569539,96040.0,96039.0,0.008863]
[1733266472822,0.61569539,96040.0,96039.0,0.008863]
[1733266473031,0.76569539,96040.0,96039.0,0.008863]
[1733266477345,0.5856828,96040.0,96039.0,0.008863]
[1733266480713,0.58539844,96040.0,96039.0,0.008863]
[1733266482939,0.38539844,96040.0,96039.0,0.008863]
[1733266483165,0.58539844,96040.0,96039.0,0.008863]
[1733266484915,0.38539844,96040.0,96039.0,0.008863]
[1733266485127,0.58539844,96040.0,96039.0,0.008863]
[1733266486501,0.0018594,96040.0,96039.0,0.057063]
[1733266486723,0.0018594,96040.0,96039.0,0.136463]
[1733266486935,0.0018594,96040.0,96039.0,0.135463]
[1733266487182,0.0018594,96040.0,96039.0,0.27569486]
[1733266487626,0.0018594,96040.0,96039.0,0.134463]
[1733266488052,0.0008594,96040.0,96039.0,0.1286]
[1733266488483,0.0018594,96040.0,96039.0,0.1376]
[1733266488693,0.0018594,96040.0,96039.0,0.27781607]
[1733266488933,0.0018594,96040.0,96039.0,0.36749334]
[1733266489213,0.0018594,96040.0,96039.0,0.27681607]
[1733266489688,0.001,96040.0,96039.0,0.67503237]
[1733266489924,0.208196,96063.0,96049.0,0.208227]
[1733266490144,0.0008594,96058.0,96050.0,0.23481259]
[1733266490367,0.208196,96063.0,96052.0,0.3149278]
[1733266490593,0.208196,96063.0,96052.0,0.23481259]
[1733266490819,0.0779,96097.0,96052.0,0.23481259]
[1733266490820,0.0008594,96062.0,96052.0,0.23481259]
[1733266491050,0.0025852,96065.0,96052.0,0.38481259]
[1733266491996,0.0025852,96065.0,96052.0,0.39681259]
[1733266492217,0.0008594,96064.0,96052.0,0.39681259]
[1733266492442,0.0008594,96064.0,96052.0,0.38781259]
[1733266492663,0.0008594,96064.0,96052.0,0.49964405]
[1733266493339,0.0008594,96064.0,96052.0,0.49664405]
[1733266493625,0.0008594,96064.0,96052.0,0.7357174]
[1733266493841,0.0008594,96064.0,96052.0,0.50264405]
[1733266494271,0.0008594,96064.0,96052.0,0.68903675]
[1733266494769,0.0017258,96065.0,96052.0,0.68903675]
[1733266494770,0.0025852,96065.0,96052.0,0.68903675]
[1733266495432,0.0025852,96065.0,96052.0,0.50264405]
[1733266495900,0.0025852,96065.0,96052.0,0.49364405]
[1733266496335,0.0025852,96065.0,96052.0,0.48764405]
[1733266496548,0.0025852,96065.0,96052.0,0.49564405]
[1733266496767,0.0025852,96065.0,96052.0,0.52306456]
[1733266497432,0.0025852,96065.0,96052.0,0.61614292]
[1733266497835,0.0025852,96065.0,96052.0,0.62514292]
[1733266498415,0.0025852,96065.0,96052.0,0.53206456]
[1733266499219,0.0017258,96065.0,96052.0,0.73206456]
[1733266500351,0.0017258,96065.0,96052.0,0.82508506]
[1733266500820,0.0017258,96065.0,96052.0,0.73206456]
[1733266501037,0.0017258,96065.0,96052.0,0.91807644]
[1733266501271,0.0017258,96065.0,96052.0,0.9180266]
[1733266501479,0.0017258,96065.0,96052.0,0.73206456]
[1733266503923,0.0017258,96065.0,96052.0,1.43206456]
[1733266505517,0.3227,96166.0,96061.0,0.0754]
[1733266505737,0.3227,96166.0,96074.0,0.208171]
[1733266505738,0.208145,96087.0,96074.0,0.208171]
[1733266505958,0.208145,96087.0,96076.0,0.0754]
[1733266506175,0.41629,96087.0,96076.0,0.0754]
[1733266506405,0.41629,96087.0,96077.0,0.05964536]
[1733266507320,0.208152,96084.0,96077.0,0.05964536]
[1733266508197,0.208152,96084.0,96077.0,0.05039117]
[1733266508439,0.208152,96084.0,96077.0,0.05439117]
[1733266508870,0.208152,96084.0,96077.0,0.05039117]
[1733266509084,0.208152,96084.0,96078.0,0.06468518]
[1733266509777,0.208146,96086.0,96078.0,0.06468518]
[1733266510241,0.208149,96085.0,96078.0,0.06468518]
[1733266510454,0.208149,96085.0,96078.0,0.06568518]
[1733266510878,0.208149,96085.0,96078.0,0.06468518]
[1733266511105,0.208149,96085.0,96079.0,0.04529688]
[1733266512031,0.208157,96082.0,96078.0,0.001]
[1733266512252,0.208149,96085.0,96079.0,0.005]
[1733266512488,0.208159,96081.0,96079.0,0.005]
[1733266513822,0.208159,96081.0,96079.0,0.002]
[1733266514280,0.208159,96081.0,96079.0,0.009]
[1733266517326,0.0303261,96080.0,96079.0,0.009]
[1733266518518,0.0303261,96080.0,96079.0,0.002]
[1733266519007,0.0303261,96080.0,96079.0,0.01]
[1733266519252,0.0303261,96080.0,96079.0,0.008]
[1733266519511,0.0303261,96080.0,96079.0,0.01]
[1733266523349,0.1060261,96080.0,96079.0,0.01]
[1733266524089,0.1546261,96080.0,96079.0,0.008]
[1733266525254,0.1546261,96080.0,96077.0,0.0017254]
[1733266525255,0.208162,96079.0,96077.0,0.0017254]
[1733266525728,0.03067784,96078.0,96077.0,0.0017254]
[1733266526208,0.02529229,96078.0,96077.0,0.0017254]
[1733266526685,0.01002277,96078.0,96077.0,0.0017254]
[1733266526893,0.01253715,96078.0,96077.0,0.0037254]
[1733266527112,0.20887066,96079.0,96077.0,0.0037254]
[1733266527335,0.19454345,96079.0,96077.0,0.0037254]
[1733266527561,0.00021706,96078.0,96077.0,0.0037254]
[1733266528241,0.18777945,96079.0,96077.0,0.0017254]
[1733266528487,0.18265787,96079.0,96077.0,0.0017254]
[1733266528708,0.18265787,96079.0,96077.0,0.0037254]
[1733266528898,0.16964165,96079.0,96077.0,0.0017254]
[1733266529343,0.16964165,96079.0,96077.0,0.0037254]
[1733266529541,0.17064165,96079.0,96077.0,0.0017254]
[1733266529767,0.17064165,96079.0,96077.0,0.0037254]
[1733266530248,0.001,96079.0,96077.0,0.0037254]
[1733266531804,0.209162,96079.0,96077.0,0.0037254]
[1733266532193,0.00012526,96078.0,96077.0,0.0037254]
[1733266532994,0.00012526,96078.0,96077.0,0.0017254]
[1733266533402,0.00012526,96078.0,96077.0,0.0037254]
[1733266535687,0.208162,96079.0,96077.0,0.0037254]
[1733266535688,0.20048332,96079.0,96077.0,0.0037254]
[1733266536795,0.20048332,96079.0,96077.0,0.0017254]
[1733266537018,0.20148332,96079.0,96077.0,0.0017254]
[1733266538414,0.19774977,96079.0,96077.0,0.0017254]
[1733266538633,0.19774977,96079.0,96077.0,0.0037254]
[1733266542304,0.00025284,96078.0,96077.0,0.0037254]
[1733266543510,0.00025284,96078.0,96077.0,0.0017254]
[1733266543732,0.00025284,96078.0,96077.0,0.0037254]
[1733266546038,0.00125284,96078.0,96077.0,0.0017254]
[1733266547224,0.0018997,96078.0,96077.0,0.0017254]
[1733266550102,0.0778997,96078.0,96077.0,0.0017254]
[1733266550327,0.0018997,96078.0,96077.0,0.0017254]
[1733266554012,0.18772826,96079.0,96077.0,0.0017254]
[1733266554235,0.00040407,96078.0,96077.0,0.0017254]
[1733266554889,0.18021666,96078.0,96077.0,0.0017254]
[1733266555120,0.13764202,96078.0,96077.0,0.0017254]
[1733266555327,0.12489815,96078.0,96077.0,0.0017254]
[1733266555769,0.12589815,96078.0,96077.0,0.0017254]
[1733266555980,0.32589815,96078.0,96077.0,0.0017254]
[1733266556394,0.40709815,96078.0,96077.0,0.0017254]
[1733266556589,0.40609815,96078.0,96077.0,0.0017254]
[1733266557133,0.4266653,96078.0,96077.0,0.0017254]
[1733266560411,0.67374306,96078.0,96077.0,0.0017254]
[1733266560637,0.70949402,96078.0,96077.0,0.0017254]
[1733266561557,0.2,96070.0,96056.0,0.0009859]
[1733266561785,0.208209,96057.0,96056.0,0.0009859]
[1733266562021,0.208218,96053.0,96052.0,5.88e-05]
[1733266562282,0.22851235,96053.0,96052.0,5.88e-05]
[1733266562512,0.23378,96053.0,96052.0,5.88e-05]
[1733266563435,0.23378,96053.0,96052.0,0.0090588]
[1733266564299,0.19923875,96053.0,96052.0,0.0120588]
[1733266564783,0.19921585,96053.0,96052.0,0.0120588]
[1733266568497,0.18674111,96053.0,96052.0,0.0120588]
[1733266568713,0.19921585,96053.0,96052.0,0.0137848]
[1733266568937,0.18674111,96053.0,96052.0,0.0137848]
[1733266569161,0.19921585,96053.0,96052.0,0.0137848]
[1733266569393,0.18674111,96053.0,96052.0,0.0137848]
[1733266569619,0.19921585,96053.0,96052.0,0.0137848]
[1733266576138,0.50392844,96053.0,96052.0,0.0137848]
[1733266576363,0.65392844,96053.0,96052.0,0.0017848]
[1733266576587,0.65392844,96053.0,96052.0,0.0047848]
[1733266576814,0.65392844,96053.0,96052.0,0.0017848]
[1733266577968,0.73502844,96053.0,96052.0,0.0017848]
[1733266578452,0.53502844,96053.0,96052.0,0.0017848]
[1733266578692,0.73502844,96053.0,96052.0,0.0017848]
[1733266579155,0.73500722,96053.0,96052.0,0.0017848]
[1733266579595,0.76159747,96053.0,96052.0,0.0017848]
[1733266580722,0.73500722,96053.0,96052.0,0.0017848]
[1733266583240,0.53500722,96053.0,96052.0,0.0017848]
[1733266583431,0.73500722,96053.0,96052.0,0.0017848]
[1733266583702,0.53500722,96053.0,96052.0,0.0017848]
[1733266592049,0.53587042,96053.0,96052.0,0.0017848]
[1733266592261,0.35005783,96053.0,96052.0,0.0803848]
[1733266592921,0.02638108,96053.0,96052.0,0.0803848]
[1733266593381,0.0139194,96053.0,96052.0,0.0803848]
[1733266594466,0.0139194,96053.0,96052.0,0.0813848]
[1733266594903,0.00613085,96053.0,96052.0,0.0813848]
[1733266595131,0.0008632,96053.0,96052.0,0.0813848]
[1733266602242,0.0008632,96053.0,96052.0,0.0833848]
[1733266602677,0.0008632,96053.0,96052.0,0.0813848]
[1733266603101,0.0008632,96053.0,96052.0,0.0843848]
[1733266603327,0.0008632,96053.0,96052.0,0.0833848]
[1733266603582,0.0008632,96053.0,96052.0,0.43356982]
[1733266603796,0.0008632,96053.0,96052.0,0.34022627]
[1733266604048,0.0008632,96053.0,96052.0,0.24359739]
[1733266604288,0.0008632,96053.0,96052.0,0.47695626]
[1733266604494,0.0008632,96053.0,96052.0,0.23559739]
[1733266604711,0.0008632,96053.0,96052.0,0.24459739]
[1733266604913,0.0008632,96053.0,96052.0,0.24159739]
[1733266605128,0.0008632,96053.0,96052.0,0.23259739]
[1733266605339,0.209029,96078.0,96052.0,0.23259739]
[1733266605340,0.000863,96078.0,96052.0,0.49042885]
[1733266605553,0.000863,96078.0,96076.0,0.1235]
[1733266605765,0.000863,96078.0,96077.0,0.10471259]
[1733266605990,0.000863,96078.0,96077.0,0.31287859]
[1733266606223,0.000863,96078.0,96077.0,0.41571005]
[1733266607337,0.000863,96078.0,96077.0,0.5159837]
[1733266607545,0.000863,96078.0,96077.0,0.42271005]
[1733266608256,0.000863,96078.0,96077.0,0.5972837]
[1733266608471,0.000863,96078.0,96077.0,0.51301005]
[1733266608682,0.000863,96078.0,96077.0,0.51201005]
[1733266609105,0.000863,96078.0,96077.0,0.51501005]
[1733266610064,0.208107,96105.0,96077.0,0.39993406]
[1733266610280,0.11711825,96117.0,96078.0,0.08425474]
[1733266610499,0.208129,96095.0,96083.0,0.208153]
[1733266610737,0.208122,96098.0,96080.0,0.208159]
[1733266610967,0.208122,96098.0,96087.0,0.208143]
[1733266611203,0.208129,96095.0,96084.0,0.208151]
[1733266611427,0.10471259,96117.0,96085.0,0.27651482]
[1733266611428,0.01239851,96116.0,96085.0,0.27651482]
[1733266611703,0.20812,96099.0,96085.0,0.48466382]
[1733266612131,0.01239851,96114.0,96085.0,0.27651482]
[1733266612344,0.208126,96096.0,96085.0,0.27651482]
[1733266612568,0.208126,96096.0,96086.0,0.06677784]
[1733266612771,0.208126,96096.0,96087.0,0.208144]
[1733266613226,0.208126,96096.0,96087.0,0.003]
[1733266613438,0.416252,96096.0,96086.0,0.06677784]
[1733266613652,0.416252,96096.0,96086.0,0.07077784]
[1733266614078,0.416252,96096.0,96082.0,0.285555]
[1733266614079,0.00043521,96098.0,96082.0,0.285555]
[1733266614291,0.208133,96093.0,96087.0,0.004]
[1733266614506,0.208127,96095.0,96087.0,0.004]
[1733266614723,0.208127,96095.0,96082.0,0.39026759]
[1733266614936,0.208127,96095.0,96086.0,0.004]
[1733266616275,0.208127,96095.0,96082.0,0.39126759]
[1733266616276,0.208127,96095.0,96085.0,0.208147]
[1733266616743,0.208127,96095.0,96087.0,0.005]
[1733266616964,0.208127,96095.0,96085.0,0.208147]
[1733266617613,0.208127,96095.0,96086.0,0.001]
[1733266617825,0.208127,96095.0,96086.0,0.005]
[1733266618039,0.208127,96095.0,96082.0,0.39026759]
[1733266618251,0.208127,96095.0,96083.0,0.04657647]
[1733266618463,0.208127,96095.0,96085.0,0.001]
[1733266618464,0.208135,96092.0,96085.0,0.001]
[1733266618883,0.208135,96092.0,96082.0,0.18211259]
[1733266619082,0.208135,96092.0,96082.0,0.18311259]
[1733266619506,0.208135,96092.0,96082.0,0.39126559]
[1733266619724,0.208135,96092.0,96085.0,0.004]
[1733266620341,0.208135,96092.0,96082.0,0.39126559]
[1733266620748,0.208135,96092.0,96082.0,0.40897464]
[1733266620951,0.208135,96092.0,96082.0,0.40797464]
[1733266621155,0.208135,96092.0,96082.0,0.39626559]
[1733266621368,0.208135,96092.0,96082.0,0.39726559]
[1733266621579,0.208135,96092.0,96082.0,0.18911259]
[1733266622538,0.00776886,96091.0,96082.0,0.18911259]
[1733266622744,0.19664805,96092.0,96082.0,0.18911259]
[1733266622745,0.19664805,96092.0,96082.0,0.39726559]
[1733266622982,0.208143,96088.0,96083.0,0.06809217]
[1733266623214,0.208136,96091.0,96083.0,0.06809217]
[1733266623437,0.208136,96091.0,96082.0,0.18311259]
[1733266623879,0.208136,96091.0,96082.0,0.18911259]
[1733266624093,0.208136,96091.0,96082.0,0.18211259]
[1733266624307,0.208136,96091.0,96082.0,0.18411259]
[1733266624527,0.208136,96091.0,96083.0,0.006]
[1733266624960,0.00777078,96090.0,96082.0,0.18411259]
[1733266625168,0.00777078,96089.0,96082.0,0.23038022]
[1733266625390,0.208136,96091.0,96082.0,0.23038022]
[1733266625391,0.208136,96091.0,96082.0,0.43653422]
[1733266625644,0.00777229,96090.0,96082.0,0.43653422]
[1733266625890,0.208136,96091.0,96082.0,0.43653422]
[1733266625891,0.208136,96091.0,96083.0,0.002]
[1733266626356,0.00777318,96090.0,96083.0,0.002]
[1733266626595,0.208136,96091.0,96083.0,0.002]
[1733266626829,0.00777317,96090.0,96083.0,0.002]
[1733266627076,0.2088511,96095.0,96082.0,0.39026659]
[1733266627077,0.0007221,96095.0,96082.0,0.39026659]
[1733266627335,0.00777371,96094.0,96082.0,0.39026659]
[1733266627569,0.00777371,96093.0,96083.0,0.09188684]
[1733266627809,0.00777371,96092.0,96083.0,0.09188684]
[1733266628053,0.00777371,96091.0,96083.0,0.09188684]
[1733266628288,0.0008628,96092.0,96083.0,0.09188684]
[1733266628289,0.00777371,96090.0,96083.0,0.09188684]
[1733266628529,0.00777371,96089.0,96084.0,0.02520469]
[1733266628760,0.00777371,96088.0,96084.0,0.02520469]
[1733266628988,0.00777371,96087.0,96083.0,0.09188684]
[1733266629232,0.00777371,96086.0,96083.0,0.08488684]
[1733266629622,0.00777371,96085.0,96082.0,0.39699219]
[1733266629843,0.01330073,96092.0,96082.0,0.39699219]
[1733266630060,0.00777935,96091.0,96083.0,0.208153]
[1733266630274,0.00777935,96090.0,96083.0,0.216153]
[1733266630525,0.0134772,96092.0,96083.0,0.208153]
[1733266630526,0.00777935,96089.0,96083.0,0.208153]
[1733266630762,0.00777935,96088.0,96083.0,0.209153]
[1733266631009,0.00777935,96087.0,96083.0,0.001]
[1733266631252,0.22059181,96090.0,96082.0,0.27677199]
[1733266631253,0.00777935,96086.0,96082.0,0.27677199]
[1733266631485,0.00777935,96085.0,96083.0,0.002]
[1733266631711,0.00103927,96092.0,96084.0,0.0929338]
[1733266631929,0.02024353,96091.0,96084.0,0.0929338]
[1733266632155,0.00103927,96092.0,96084.0,0.0929338]
[1733266632156,0.02024353,96090.0,96084.0,0.0929338]
[1733266632387,0.02024353,96089.0,96084.0,0.0929338]
[1733266632610,0.02024353,96088.0,96086.0,0.0929338]
[1733266632838,0.208136,96091.0,96087.0,0.0929338]
[1733266633060,0.02025603,96090.0,96087.0,0.0929338]
[1733266633318,0.00103927,96092.0,96087.0,0.0929338]
[1733266633319,0.02025603,96089.0,96087.0,0.0929338]
[1733266633538,0.00103927,96092.0,96087.0,0.13940071]
[1733266633539,0.02025603,96088.0,96087.0,0.13940071]
[1733266633760,0.02025603,96088.0,96087.0,0.23466011]
[1733266634439,0.02025603,96088.0,96087.0,0.24202877]
[1733266634666,0.02025603,96088.0,96087.0,0.1022594]
[1733266634900,0.02025603,96088.0,96087.0,0.1042594]
[1733266635536,0.02025603,96088.0,96087.0,0.0972594]
[1733266635758,0.02025603,96088.0,96087.0,0.2223594]
[1733266635981,0.02025603,96088.0,96087.0,0.32707199]
[1733266636426,0.02025603,96088.0,96087.0,0.33007199]
[1733266636864,0.02025603,96088.0,96087.0,0.32507199]
[1733266637141,0.02025603,96088.0,96087.0,0.33207199]
[1733266639978,0.02025603,96088.0,96087.0,0.3584756]
[1733266640408,0.00779078,96088.0,96087.0,0.3584756]
[1733266640663,0.408044,96134.0,96120.0,0.208072]
[1733266640922,0.0017244,96145.0,96125.0,0.208062]
[1733266641162,0.0017244,96145.0,96140.0,0.208029]
[1733266641398,0.0017244,96145.0,96140.0,0.48309996]
[1733266641638,0.0017244,96145.0,96140.0,0.60905489]
[1733266641895,0.0017244,96145.0,96140.0,0.65735489]
[1733266642117,0.0017244,96145.0,96144.0,0.208021]
[1733266642331,0.0217258,96153.0,96144.0,0.25655338]
[1733266642546,0.0217258,96153.0,96147.0,0.358014]
[1733266642792,0.0217258,96153.0,96152.0,0.358003]
[1733266643021,0.0832,96191.0,96152.0,0.358003]
[1733266643022,0.01245234,96190.0,96174.0,0.207956]
[1733266643255,0.00145158,96175.0,96174.0,0.207956]
[1733266643463,0.00145158,96175.0,96174.0,0.31266859]
[1733266643895,0.00145158,96175.0,96174.0,0.38986859]
[1733266644115,0.00145158,96175.0,96174.0,0.49270005]
[1733266645051,0.00145158,96175.0,96174.0,0.49370005]
[1733266646215,0.00145158,96175.0,96174.0,0.49970005]
[1733266646669,0.00145158,96175.0,96174.0,0.49870005]
[1733266646881,0.00145158,96175.0,96174.0,0.50270005]
[1733266650607,0.2,96235.0,96205.0,0.0784]
[1733266650838,0.0767,96249.0,96214.0,0.09221174]
[1733266650839,0.2,96244.0,96214.0,0.09221174]
[1733266651083,0.207839,96228.0,96220.0,0.21682932]
[1733266651322,0.207839,96228.0,96225.0,0.09221174]
[1733266651827,0.207839,96228.0,96223.0,0.13831762]
[1733266651828,0.207839,96228.0,96226.0,0.09221174]
[1733266652297,0.00103933,96238.0,96226.0,0.09221174]
[1733266652521,0.207831,96232.0,96227.0,0.09221174]
[1733266652749,0.00103933,96238.0,96227.0,0.09221174]
[1733266652991,0.207833,96231.0,96228.0,0.04689099]
[1733266653939,0.207833,96231.0,96230.0,0.09221174]
[1733266654397,0.207829,96233.0,96230.0,0.09221174]
[1733266654623,0.415658,96233.0,96230.0,0.09221174]
[1733266654850,0.207829,96233.0,96230.0,0.09221174]
[1733266655109,0.415658,96233.0,96230.0,0.09221174]
[1733266655365,0.207829,96233.0,96230.0,0.15675996]
[1733266655605,0.2,96248.0,96230.0,0.06454822]
[1733266655841,0.10471259,96247.0,96230.0,0.00017653]
[1733266656076,0.207829,96233.0,96230.0,0.00017653]
[1733266656531,0.207829,96233.0,96230.0,0.00117653]
[1733266656767,0.207829,96233.0,96230.0,0.00017653]
[1733266657454,0.415658,96233.0,96230.0,0.00017653]
[1733266657705,0.407789,96252.0,96230.0,0.00017653]
[1733266657920,0.207824,96236.0,96230.0,0.00017653]
[1733266658360,0.207806,96244.0,96231.0,0.10471259]
[1733266658565,0.078,96261.0,96232.0,0.03127321]
[1733266658781,0.207802,96246.0,96233.0,0.10471259]
[1733266660516,0.207781,96255.0,96233.0,0.10471259]
[1733266660517,0.207803,96245.0,96233.0,0.10471259]
[1733266660952,0.415606,96245.0,96233.0,0.10471259]
[1733266661167,0.207796,96249.0,96234.0,0.25052536]